fUST/lending_fUST_20240327
["ID","MTS","AMOUNT","RATE_DAILY","PERIOD"]
[320761503,1711548638943,-1231.2,0.00023997,2]
[320761505,1711548638952,-583.99,0.00023997,2]
[320761507,1711548638961,-500.0,0.00023997,2]
[320761509,1711548638970,-871.57,0.00023997,2]
[320761511,1711548638980,-500.0,0.00023997,2]
[320761513,1711548638989,-500.0,0.00023997,2]
[320761514,1711548638998,-2605.39,0.00023997,2]
[320761516,1711548639008,-500.0,0.00023997,2]
[320761518,1711548639018,-678.96,0.00023997,2]
[320761520,1711548639029,-500.0,0.00023997,2]
[320761522,1711548639041,-500.0,0.00023997,2]
[320761524,1711548639051,-500.0,0.00023997,2]
[320761525,1711548639062,-500.0,0.00023997,2]
[320761526,1711548639073,-573.74,0.00023997,2]
[320761528,1711548639084,-1139.52,0.00023997,2]
[320761529,1711548639100,-500.0,0.00023997,2]
[320761530,1711548639112,-1425.6,0.00023997,2]
[320761531,1711548639121,-500.0,0.00023997,2]
[320761532,1711548639134,-2497.89,0.00023997,2]
[320761533,1711548639144,-500.0,0.00023997,2]
[320761534,1711548639153,-1027.22,0.00023997,2]
[320761535,1711548639163,-500.0,0.00023997,2]
[320761536,1711548639176,-2640.51,0.00023997,2]
[320761537,1711548639185,-500.0,0.00023997,2]
[320761538,1711548639196,-500.0,0.00023997,2]
[320761539,1711548639206,-16973.37,0.00023997,2]
[320761540,1711548639215,-500.0,0.00023997,2]
[320761541,1711548639225,-1666.1460091,0.00023998,2]
[320761542,1711548639235,-301.94084716,0.00023998,2]
[320761543,1711548639246,-171.29320537,0.00023998,2]
[320761544,1711548639255,-205.52989063,0.00023998,2]
[320761545,1711548639264,-1922.64152204,0.00023998,2]
[320761546,1711548639274,-1264.68313104,0.00023998,2]
[320761547,1711548639283,-500.0,0.00023998,2]
[320761548,1711548639293,-500.0,0.00023998,2]
[320761549,1711548639302,-500.0,0.00023998,2]
[320761550,1711548639313,-960.84,0.00023998,2]
[320761551,1711548639323,-500.0,0.00023998,2]
[320761552,1711548639333,-500.0,0.00023998,2]
[320761553,1711548639342,-500.0,0.00023998,2]
[320761554,1711548639353,-500.0,0.00023998,2]
[320761555,1711548639364,-520.38402693,0.00023998,2]
[320761556,1711548639376,-500.0,0.00023998,2]
[320761557,1711548639388,-665.16,0.00023998,2]
[320761558,1711548639400,-500.0,0.00023998,2]
[320761559,1711548639410,-500.0,0.00023998,2]
[320761560,1711548639421,-500.0,0.00023998,2]
[320761561,1711548639430,-500.0,0.00023998,2]
[320761562,1711548639440,-500.0,0.00023998,2]
[320761563,1711548639450,-500.0,0.00023998,2]
[320761564,1711548639459,-500.0,0.00023998,2]
[320761565,1711548639468,-500.0,0.00023998,2]
[320761566,1711548639478,-500.0,0.00023998,2]
[320761568,1711548639488,-500.0,0.00023998,2]
[320761569,1711548639499,-500.0,0.00023998,2]
[320761571,1711548639509,-500.0,0.00023998,2]
[320761573,1711548639520,-500.0,0.00023998,2]
[320761575,1711548639530,-500.0,0.00023998,2]
[320761577,1711548639540,-500.0,0.00023998,2]
[320761579,1711548639550,-306.37956147,0.00023998,2]
[320761580,1711548639561,-16401.05065842,0.00023998,2]
[320761625,1711548640266,-2610.88934158,0.00023998,2]
[320761627,1711548640276,-500.0,0.00023998,2]
[320761629,1711548640285,-500.0,0.00023998,2]
[320761631,1711548640296,-500.0,0.00023999,2]
[320761633,1711548640305,-688.44756833,0.00024,2]
[320761635,1711548640314,-2130.0457674,0.00024,7]
[320761639,1711548640347,-295.02679679,0.00024,7]
[320761644,1711548640387,-1499.9892012,0.00024,7]
[320761988,1711548643407,-3559.60682592,0.00024,7]
[320761991,1711548643418,-166.666666,0.00024482,2]
[320761993,1711548643429,-7762.27330439,0.0002455,2]
[320761995,1711548643441,-298.0637908,0.00025,2]
[320761996,1711548643451,-155.11633725,0.00025,2]
[320761999,1711548643460,-976.543571,0.00025078,2]
[320762000,1711548643470,-407.961537,0.00025078,2]
[320762003,1711548643479,-6681.39571866,0.00025122,2]
[320762005,1711548643489,-303.0,0.00025149,2]
[320762007,1711548643499,-301.0,0.00025149,2]
[320762009,1711548643509,-137.67224898,0.00025149,2]
[320762500,1711548649396,-340.90879878,0.00023997,2]
[320762502,1711548649407,-157.85211395,0.00025148,2]
[320762504,1711548649418,-877.79537572,0.00025148,2]
[320762506,1711548649429,-595.21972144,0.00025148,2]
[320762508,1711548649440,-162.32775102,0.00025149,2]
[320762510,1711548649450,-695.63804737,0.00025221,2]
[320762512,1711548649461,-690.25819172,0.00025222,30]
[320764812,1711549135049,-200.0,0.0002588,120]
[320764984,1711549697961,5000.0,0.0002111,4]
[320764994,1711549781775,360.2729124,0.0001901,2]
[320764995,1711549831137,378.23332616,0.0002111,5]
[320765210,1711549837627,-180.29988921,0.00021108,2]
[320765211,1711549837637,-1664.83175865,0.00021109,2]
[320765212,1711549837646,-260.0,0.00021109,2]
[320765213,1711549837655,-644.30835214,0.0002111,2]
[320765214,1711549837667,-3597.06550424,0.0002111,2]
[320765215,1711549837678,-9708.54882306,0.0002111,2]
[320765217,1711549837698,-342.44312853,0.0002111,2]
[320765219,1711549837708,-688.71264987,0.0002111,2]
[320765222,1711549837717,-166.666666,0.00021918,2]
[320765225,1711549837727,-215.0,0.00022,2]
[320765228,1711549837737,-3704.91014556,0.00022,2]
[320765231,1711549837747,-877.79537572,0.0002217,2]
[320765232,1711549837757,-215.0,0.00022192,2]
[320765234,1711549837766,-166.666666,0.00022493,2]
[320765236,1711549837775,-241.83291114,0.00023,2]
[320765239,1711549837785,-215.0,0.00023014,2]
[320765241,1711549837798,-75.10757709,0.00023069,2]
[320765289,1711549839440,-91.55908891,0.00023069,2]
[320765290,1711549839450,-166.666666,0.00023644,2]
[320765291,1711549839459,-1006.14283358,0.00023896,2]
[320765292,1711549839469,-574.59037177,0.00023986,2]
[320765293,1711549839478,-155.1694261,0.00023995,2]
[320765294,1711549839488,-502.80777362,0.00023996,2]
[320765295,1711549839497,-500.0,0.00023996,2]
[320765296,1711549839507,-500.0,0.00023996,2]
[320765297,1711549839516,-27.96072002,0.00023996,2]
[320765298,1711549839641,-1064.07927998,0.00023996,2]
[320765299,1711549839650,-1173.13820447,0.00023996,2]
[320765300,1711549839662,-792.72179553,0.00023996,2]
[320765302,1711549839673,-637.45,0.00023996,2]
[320765304,1711549839682,-500.0,0.00023996,2]
[320765306,1711549839691,-224.21569501,0.00023996,2]
[320765319,1711549840410,-339.30752749,0.00023996,2]
[320765320,1711549840422,-500.0,0.00023996,2]
[320765323,1711549840433,-500.0,0.00023996,2]
[320765325,1711549840446,-500.79872623,0.00023996,2]
[320765326,1711549840456,-500.0,0.00023996,2]
[320765327,1711549840467,-1215.16,0.00023996,2]
[320765328,1711549840478,-500.0,0.00023996,2]
[320765329,1711549840490,-500.0,0.00023996,2]
[320765330,1711549840500,-500.0,0.00023996,2]
[320765331,1711549840511,-4948.34,0.00023996,2]
[320765332,1711549840523,-18798.95,0.00023996,2]
[320765333,1711549840532,-1107.17,0.00023996,2]
[320765334,1711549840542,-500.0,0.00023996,2]
[320765335,1711549840556,-559.66,0.00023996,2]
[320765336,1711549840565,-500.0,0.00023996,2]
[320765337,1711549840575,-508.73,0.00023996,2]
[320765338,1711549840585,-835.26,0.00023996,2]
[320765339,1711549840594,-500.0,0.00023996,2]
[320765340,1711549840603,-984.42,0.00023996,2]
[320765341,1711549840614,-549.83,0.00023996,2]
[320765342,1711549840623,-500.0,0.00023996,2]
[320765343,1711549840633,-1366.2,0.00023996,2]
[320765344,1711549840642,-500.0,0.00023996,2]
[320765345,1711549840652,-500.0,0.00023996,2]
[320765346,1711549840661,-500.0,0.00023996,2]
[320765347,1711549840670,-2393.81,0.00023996,2]
[320765348,1711549840680,-1179.9,0.00023996,2]
[320765349,1711549840690,-500.0,0.00023996,2]
[320765350,1711549840699,-16266.15,0.00023996,2]
[320765351,1711549840708,-309.8825653,0.00023996,2]
[320765352,1711549840718,-500.0,0.00023997,2]
[320765353,1711549840727,-500.0,0.00023997,2]
[320765354,1711549840737,-500.0,0.00023997,2]
[320765355,1711549840747,-537.44353425,0.00023997,2]
[320765356,1711549840757,-500.0,0.00023997,2]
[320765357,1711549840767,-500.0,0.00023997,2]
[320765358,1711549840776,-500.0,0.00023997,2]
[320765359,1711549840786,-500.0,0.00023997,2]
[320765360,1711549840796,-500.0,0.00023997,2]
[320765361,1711549840810,-650.67,0.00023997,2]
[320765362,1711549840820,-500.0,0.00023997,2]
[320765364,1711549840829,-500.0,0.00023997,2]
[320765366,1711549840839,-500.0,0.00023997,2]
[320765368,1711549840849,-500.0,0.00023997,2]
[320765369,1711549840858,-2530.49,0.00023997,2]
[320765371,1711549840870,-220.64367856,0.00023997,2]
[320765372,1711549840880,-500.0,0.00023997,2]
[320765374,1711549840890,-360.2729124,0.0002401,2]
[320765376,1711549840900,-220.0,0.00024164,2]
[320765377,1711549840910,-166.666666,0.00024219,2]
[320765379,1711549840920,-1006.14283356,0.00024398,2]
[320765380,1711549840930,-555.21609508,0.00024399,2]
[320765381,1711549840939,-1254.03,0.00024399,2]
[320765383,1711549840949,-10006.776301,0.000244,2]
[320765384,1711549840959,-167.658933,0.00024432,2]
[320765386,1711549840970,-187.0573238,0.00024658,2]
[320765387,1711549840980,-2202.87538702,0.00024738,2]
[320765389,1711549840989,-166.666666,0.00024795,2]
[320765391,1711549840999,-1006.14283356,0.000249,2]
[320765393,1711549841009,-190781.02689696,0.00025,3]
[320765394,1711549841018,-7762.27330439,0.00025,2]
[320765396,1711549841028,-151.8958432,0.00025205,2]
[320765398,1711549841038,-500.0,0.00025242,2]
[320765400,1711549841047,-500.0,0.00025242,2]
[320765402,1711549841059,-500.0,0.00025242,2]
[320765403,1711549841068,-3094.02,0.00025242,2]
[320765405,1711549841078,-500.0,0.00025242,2]
[320765406,1711549841088,-500.0,0.00025242,2]
[320765407,1711549841097,-500.0,0.00025242,2]
[320765408,1711549841107,-3173.61,0.00025242,2]
[320765409,1711549841117,-500.0,0.00025242,2]
[320765410,1711549841127,-500.0,0.00025242,2]
[320765411,1711549841137,-500.0,0.00025242,2]
[320765412,1711549841147,-500.0,0.00025242,2]
[320765413,1711549841156,-920.8,0.00025242,2]
[320765414,1711549841166,-500.0,0.00025242,2]
[320765415,1711549841175,-500.0,0.00025242,2]
[320765416,1711549841185,-500.0,0.00025242,2]
[320765417,1711549841195,-2496.83,0.00025242,2]
[320765418,1711549841204,-500.0,0.00025242,2]
[320765419,1711549841213,-10000.0,0.00025243,30]
[320765420,1711549841223,-2610.81,0.00025243,30]
[320765421,1711549841233,-976.543571,0.00025392,2]
[320765422,1711549841243,-407.961537,0.00025392,2]
[320765423,1711549841253,-273.29304654,0.00025656,2]
[320765424,1711549841262,-976.543571,0.00025705,2]
[320765425,1711549841272,-407.961537,0.00025705,2]
[320765426,1711549841282,-288.25576353,0.00025711,2]
[320765427,1711549841292,-288.25576353,0.00025764,2]
[320765428,1711549841306,-215.0,0.00025775,2]
[320765429,1711549841315,-500.0,0.0002588,2]
[320765430,1711549841325,-19065.22561245,0.0002588,2]
[320765431,1711549841335,-273.29304654,0.00025942,2]
[320765432,1711549841345,-273.29304654,0.00025966,2]
[320765433,1711549841355,-188.33303066,0.00025998,2]
[320765434,1711549841365,-929.41350017,0.00025998,2]
[320765435,1711549841376,-273.14777662,0.00025998,2]
[320765436,1711549841386,-1547.52596593,0.00025999,2]
[320765437,1711549841396,-127345.37293824,0.00026,2]
[320765438,1711549841407,-661.0,0.00026,2]
[320765439,1711549841416,-976.543571,0.00026019,2]
[320765440,1711549841426,-407.961537,0.00026019,2]
[320765441,1711549841439,-273.29304654,0.00026176,2]
[320765442,1711549841448,-288.25576353,0.00026238,2]
[320765443,1711549841457,-273.29304654,0.00026298,2]
[320765444,1711549841466,-976.543571,0.00026332,2]
[320765445,1711549841477,-407.961537,0.00026332,2]
[320765446,1711549841486,-500.0,0.00026736,2]
[320765447,1711549841496,-1092.04,0.00026736,2]
[320765448,1711549841505,-1965.86,0.00026736,2]
[320765449,1711549841516,-637.45,0.00026736,2]
[320765450,1711549841526,-500.0,0.00026736,2]
[320765451,1711549841535,-500.0,0.00026736,2]
[320765452,1711549841545,-500.0,0.00026736,2]
[320765453,1711549841559,-500.0,0.00026736,2]
[320765454,1711549841568,-1215.16,0.00026736,2]
[320765455,1711549841577,-500.0,0.00026736,2]
[320765456,1711549841586,-500.0,0.00026736,2]
[320765457,1711549841596,-500.0,0.00026736,2]
[320765458,1711549841606,-4948.34,0.00026736,2]
[320765459,1711549841616,-18798.95,0.00026736,2]
[320765460,1711549841625,-1107.17,0.00026736,2]
[320765461,1711549841635,-500.0,0.00026736,2]
[320765462,1711549841644,-559.66,0.00026736,2]
[320765463,1711549841654,-500.0,0.00026736,2]
[320765464,1711549841664,-508.73,0.00026736,2]
[320765465,1711549841673,-835.26,0.00026736,2]
[320765466,1711549841683,-500.0,0.00026736,2]
[320765467,1711549841693,-984.42,0.00026736,2]
[320765468,1711549841703,-549.83,0.00026736,2]
[320765469,1711549841712,-500.0,0.00026736,2]
[320765470,1711549841722,-1366.2,0.00026736,2]
[320765471,1711549841732,-500.0,0.00026736,2]
[320765472,1711549841742,-500.0,0.00026736,2]
[320765473,1711549841752,-2393.81,0.00026736,2]
[320765474,1711549841762,-1179.9,0.00026736,2]
[320765475,1711549841771,-500.0,0.00026736,2]
[320765476,1711549841780,-16266.15,0.00026736,2]
[320765477,1711549841790,-500.0,0.00026737,2]
[320765478,1711549841804,-500.0,0.00026737,2]
[320765479,1711549841813,-500.0,0.00026737,2]
[320765480,1711549841822,-500.0,0.00026737,2]
[320765481,1711549841832,-487.84613097,0.00026737,2]
[320765482,1711549841842,-500.0,0.00026737,2]
[320765483,1711549841851,-500.0,0.00026737,2]
[320765484,1711549841861,-500.0,0.00026737,2]
[320765485,1711549841871,-650.67,0.00026737,2]
[320765486,1711549841881,-395.06849054,0.00026737,2]
[320765487,1711549841890,-500.0,0.00026737,2]
[320765488,1711549841900,-500.0,0.00026737,2]
[320765489,1711549841910,-2530.49,0.00026737,2]
[320765490,1711549841919,-500.0,0.00026737,2]
[320765491,1711549841929,-151.89584318,0.00026742,2]
[320765492,1711549841938,-273.29304654,0.00026771,2]
[320765493,1711549841948,-288.25576353,0.00026867,2]
[320765494,1711549841958,-273.29304654,0.00026904,2]
[320765495,1711549841967,-3109.9808031,0.00027,2]
[320765496,1711549841977,-1595.76083188,0.00027,15]
[320765497,1711549841986,-1254.03,0.00027139,2]
[320765498,1711549841995,-273.29304654,0.00027181,2]
[320765499,1711549842007,-2500.0,0.0002728,5]
[320765500,1711549842017,-2000.0,0.00027297,2]
[320765501,1711549842026,-1770.01307927,0.00027297,2]
[320765502,1711549842036,-273.29304654,0.00027309,2]
[320765503,1711549842045,-996.0,0.00027331,2]
[320765504,1711549842060,-160.0,0.00027376,3]
[320765505,1711549842069,-215.0,0.00027386,2]
[320765506,1711549842078,-30228.71953455,0.00027396,5]
[320765507,1711549842089,-4519.86,0.00027397,7]
[320765508,1711549842098,-4519.86,0.00027397,7]
[320765509,1711549842108,-500.0,0.00027397,14]
[320765510,1711549842117,-502.03249242,0.00027397,14]
[320765511,1711549842127,-4527.25,0.00027397,2]
[320765512,1711549842136,-4527.25,0.00027397,2]
[320765513,1711549842146,-2495.81102411,0.00027397,2]
[320765514,1711549842155,-2495.81102411,0.00027397,2]
[320765515,1711549842164,-2495.81102411,0.00027397,2]
[320765516,1711549842174,-2495.81102411,0.00027397,2]
[320765517,1711549842183,-2495.81102411,0.00027397,2]
[320765518,1711549842193,-2495.81102411,0.00027397,2]
[320765519,1711549842202,-2495.81102411,0.00027397,2]
[320765520,1711549842212,-2495.81102411,0.00027397,2]
[320765521,1711549842221,-2495.81102411,0.00027397,2]
[320765522,1711549842231,-2495.81102411,0.00027397,2]
[320765523,1711549842241,-2495.81102411,0.00027397,2]
[320765524,1711549842251,-2495.81102411,0.00027397,2]
[320765525,1711549842260,-2495.81102411,0.00027397,2]
[320765526,1711549842270,-2495.81102411,0.00027397,2]
[320765527,1711549842279,-2495.81102411,0.00027397,2]
[320765528,1711549842290,-2495.81102411,0.00027397,2]
[320765529,1711549842303,-2495.81102411,0.00027397,2]
[320765530,1711549842313,-2495.81102411,0.00027397,2]
[320765531,1711549842323,-2495.81102411,0.00027397,2]
[320765532,1711549842332,-2495.81102411,0.00027397,2]
[320765533,1711549842342,-2495.81102411,0.00027397,2]
[320765534,1711549842353,-2495.81102411,0.00027397,2]
[320765535,1711549842362,-2495.81102411,0.00027397,2]
[320765536,1711549842372,-2495.81102411,0.00027397,2]
[320765537,1711549842382,-2495.81102411,0.00027397,2]
[320765538,1711549842392,-2495.81102411,0.00027397,2]
[320765539,1711549842405,-2495.81102411,0.00027397,2]
[320765540,1711549842417,-2495.81102411,0.00027397,2]
[320765541,1711549842426,-2495.81102411,0.00027397,2]
[320765542,1711549842436,-2495.81102411,0.00027397,2]
[320765543,1711549842446,-2495.81102411,0.00027397,2]
[320765544,1711549842456,-2495.81102411,0.00027397,2]
[320765545,1711549842466,-2495.81102411,0.00027397,2]
[320765546,1711549842476,-2495.81102411,0.00027397,2]
[320765547,1711549842489,-2495.81102411,0.00027397,2]
[320765548,1711549842499,-2495.81102411,0.00027397,2]
[320765549,1711549842509,-2495.81102411,0.00027397,2]
[320765550,1711549842520,-2495.81102411,0.00027397,2]
[320765551,1711549842530,-2495.81102411,0.00027397,2]
[320765552,1711549842540,-2495.81102411,0.00027397,2]
[320765553,1711549842549,-2495.81102411,0.00027397,2]
[320765554,1711549842562,-2495.81102411,0.00027397,2]
[320765555,1711549842572,-2495.81102411,0.00027397,2]
[320765556,1711549842582,-2495.81102411,0.00027397,2]
[320765557,1711549842591,-2495.81102411,0.00027397,2]
[320765558,1711549842601,-2495.81102411,0.00027397,2]
[320765559,1711549842611,-2495.81102411,0.00027397,2]
[320765560,1711549842621,-2495.81102411,0.00027397,2]
[320765561,1711549842631,-2495.81102411,0.00027397,2]
[320765564,1711549842641,-2495.81102411,0.00027397,2]
[320765567,1711549842652,-2495.81102411,0.00027397,2]
[320765569,1711549842662,-2495.81102411,0.00027397,2]
[320765571,1711549842673,-2495.81102411,0.00027397,2]
[320765573,1711549842683,-2495.81102411,0.00027397,2]
[320765575,1711549842693,-2495.81102411,0.00027397,2]
[320765576,1711549842703,-2495.81102411,0.00027397,2]
[320765578,1711549842713,-2495.81102411,0.00027397,2]
[320765579,1711549842722,-2495.81102411,0.00027397,2]
[320765580,1711549842732,-2495.81102411,0.00027397,2]
[320765582,1711549842741,-2495.81102411,0.00027397,2]
[320765583,1711549842751,-2495.81102411,0.00027397,2]
[320765584,1711549842760,-2495.81102411,0.00027397,2]
[320765586,1711549842769,-2495.81102411,0.00027397,2]
[320765589,1711549842778,-288.25576353,0.0002743,2]
[320765591,1711549842787,-273.29304654,0.00027443,2]
[320765594,1711549842797,-288.25576353,0.00027496,2]
[320765596,1711549842811,-273.29304654,0.00027558,2]
[320765598,1711549842820,-273.29304654,0.00027564,2]
[320765600,1711549842830,-215.0,0.00027616,2]
[320765602,1711549842839,-160.0,0.00027691,4]
[320765604,1711549842850,-288.25576353,0.00027741,2]
[320765606,1711549842859,-151.89584318,0.00027742,2]
[320765608,1711549842868,-273.29304654,0.00027745,2]
[320765610,1711549842878,-273.29304654,0.0002798,2]
[320765612,1711549842888,-500.0,0.00027982,2]
[320765614,1711549842897,-500.0,0.00027982,2]
[320765617,1711549842906,-500.0,0.00027982,2]
[320765619,1711549842916,-3094.02,0.00027982,2]
[320765620,1711549842925,-500.0,0.00027982,2]
[320765622,1711549842935,-500.0,0.00027982,2]
[320765624,1711549842944,-3173.61,0.00027982,2]
[320765626,1711549842954,-500.0,0.00027982,2]
[320765628,1711549842963,-500.0,0.00027982,2]
[320765630,1711549842973,-500.0,0.00027982,2]
[320765633,1711549842982,-920.8,0.00027982,2]
[320765636,1711549842992,-500.0,0.00027982,2]
[320765639,1711549843002,-500.0,0.00027982,2]
[320765642,1711549843012,-500.0,0.00027982,2]
[320765646,1711549843022,-2496.83,0.00027982,2]
[320765651,1711549843034,-500.0,0.00027982,2]
[320765653,1711549843057,-5595.0,0.00028,30]
[320765657,1711549843068,-160.0,0.00028005,5]
[320765659,1711549843079,-288.25576353,0.00028039,2]
[320765663,1711549843089,-273.29304654,0.00028156,2]
[320765665,1711549843100,-277.59149032,0.00028193,2]
[320765668,1711549843111,-288.25576353,0.00028205,2]
[320765671,1711549843122,-273.29304654,0.0002829,2]
[320765674,1711549843132,-160.0,0.0002832,6]
[320765677,1711549843141,-273.29304654,0.00028385,2]
[320765681,1711549843151,-273.29304654,0.00028527,2]
[320765683,1711549843160,-273.29304654,0.0002863,2]
[320765686,1711549843170,-160.0,0.00028634,7]
[320765688,1711549843179,-153.3408264,0.00028641,2]
[320765690,1711549843188,-153.0,0.00028641,2]
[320765692,1711549843197,-153.0,0.00028641,2]
[320765695,1711549843206,-153.0,0.00028641,2]
[320765698,1711549843215,-153.0,0.00028641,2]
[320765700,1711549843225,-288.25576353,0.00028726,2]
[320765701,1711549843234,-151.89584318,0.00028742,2]
[320765703,1711549843243,-998.0,0.0002877,5]
[320765704,1711549843253,-136187.75192122,0.0002877,2]
[320765706,1711549843262,-20592.99630629,0.0002877,2]
[320765708,1711549843271,-273.29304654,0.00028778,2]
[320765710,1711549843281,-160.0,0.00028949,8]
[320765711,1711549843290,-215.0,0.00028997,2]
[320765712,1711549843300,-838.08885658,0.00029,2]
[320765717,1711549843420,-200.18664054,0.00029,2]
[320765718,1711549843430,-2409.70048776,0.00029,7]
[320765720,1711549843441,-360.2729124,0.0002901,2]
[320765722,1711549843450,-273.29304654,0.00029093,2]
[320765724,1711549843460,-288.25576353,0.00029129,2]
[320765726,1711549843470,-288.25576353,0.00029225,2]
[320765728,1711549843479,-160.0,0.00029263,9]
[320765729,1711549843489,-288.25576353,0.00029274,2]
[320765730,1711549843498,-500.0,0.00029476,2]
[320765731,1711549843507,-1092.04,0.00029476,2]
[320765732,1711549843517,-1965.86,0.00029476,2]
[320765733,1711549843526,-637.45,0.00029476,2]
[320765735,1711549843536,-500.0,0.00029476,2]
[320765736,1711549843546,-500.0,0.00029476,2]
[320765737,1711549843560,-625.07286727,0.00029476,2]
[320765738,1711549843569,-500.0,0.00029476,2]
[320765739,1711549843578,-1215.16,0.00029476,2]
[320765740,1711549843588,-500.0,0.00029476,2]
[320765741,1711549843597,-500.0,0.00029476,2]
[320765742,1711549843606,-500.0,0.00029476,2]
[320765743,1711549843615,-4948.34,0.00029476,2]
[320765744,1711549843625,-18798.95,0.00029476,2]
[320765745,1711549843634,-1107.17,0.00029476,2]
[320765746,1711549843643,-4527.25,0.00029476,2]
[320765747,1711549843653,-500.0,0.00029476,2]
[320765748,1711549843662,-559.66,0.00029476,2]
[320765749,1711549843672,-403.31480138,0.00029476,2]
[320765750,1711549843681,-508.73,0.00029476,2]
[320765751,1711549843690,-835.26,0.00029476,2]
[320765752,1711549843699,-500.0,0.00029476,2]
[320765753,1711549843709,-984.42,0.00029476,2]
[320765754,1711549843717,-549.83,0.00029476,2]
[320765755,1711549843726,-500.0,0.00029476,2]
[320765756,1711549843736,-1366.2,0.00029476,2]
[320765757,1711549843745,-500.0,0.00029476,2]
[320765758,1711549843755,-500.0,0.00029476,2]
[320765759,1711549843764,-2393.81,0.00029476,2]
[320765760,1711549843773,-1179.9,0.00029476,2]
[320765761,1711549843783,-500.0,0.00029476,2]
[320765762,1711549843793,-16266.15,0.00029476,2]
[320765763,1711549843807,-481.7112812,0.00029477,2]
[320765764,1711549843817,-500.0,0.00029477,2]
[320765765,1711549843827,-500.0,0.00029477,2]
[320765766,1711549843836,-500.0,0.00029477,2]
[320765767,1711549843846,-500.0,0.00029477,2]
[320765768,1711549843855,-500.0,0.00029477,2]
[320765769,1711549843865,-500.0,0.00029477,2]
[320765770,1711549843874,-4519.86,0.00029477,7]
[320765771,1711549843883,-650.67,0.00029477,2]
[320765772,1711549843893,-500.0,0.00029477,2]
[320765773,1711549843902,-500.0,0.00029477,2]
[320765774,1711549843912,-2530.49,0.00029477,2]
[320765775,1711549843922,-222.74389375,0.00029477,2]
[320765776,1711549843932,-288.25576353,0.00029482,2]
[320765777,1711549843941,-160.0,0.00029578,10]
[320765778,1711549843951,-1254.03,0.00029879,2]
[320765779,1711549843960,-160.0,0.00029892,11]
[320765780,1711549843970,-288.25576353,0.00029939,2]
[320765781,1711549843979,-167.80647004,0.0003,2]
[320765782,1711549843988,-377.10786181,0.0003,10]
[320765783,1711549843998,-7431.93935298,0.0003,2]
[320765784,1711549844008,-925.28344842,0.0003,4]
[320765785,1711549844017,-574.0,0.0003,30]
[320765786,1711549844027,-598.25926915,0.0003,2]
[320765787,1711549844036,-6846.0,0.0003,15]
[320765788,1711549844046,-1009.16338723,0.0003,4]
[320765789,1711549844060,-43386.02466792,0.0003,7]
[320765790,1711549844070,-155.02480397,0.0003,4]
[320765791,1711549844079,-11146.65527793,0.0003,120]
[320765792,1711549844088,-353.91146196,0.0003,2]
[320765793,1711549844097,-1212.41219205,0.0003,2]
[320765794,1711549844107,-257.0,0.0003,2]
[320765795,1711549844116,-288.25576353,0.00030068,7]
[320765796,1711549844126,-500.0,0.00030136,2]
[320765797,1711549844135,-6250.0,0.00030137,120]
[320765798,1711549844144,-288.25576353,0.00030143,7]
[320765799,1711549844153,-288.25576353,0.00030202,7]
[320765800,1711549844162,-160.0,0.00030207,12]
[320765801,1711549844171,-998.0,0.00030208,5]
[320765802,1711549844181,-273.29304654,0.000303,7]
[320765803,1711549844190,-288.25576353,0.00030401,7]
[320765804,1711549844199,-160.0,0.00030521,13]
[320765805,1711549844208,-500.0,0.00030722,2]
[320765806,1711549844218,-500.0,0.00030722,2]
[320765807,1711549844227,-500.0,0.00030722,2]
[320765808,1711549844237,-3094.02,0.00030722,2]
[320765809,1711549844246,-500.0,0.00030722,2]